bitfinex-derivatives/quotes_SOLF0:USTF0_20250130
["timestamp","ask_amount","ask_price","bid_price","bid_amount"]
[1738239911504,4.1561,240.65,240.6,12.52958303]
[1738239911813,7.17808971,240.65,240.6,8.37288303]
[1738239912215,0.03056834,240.65,240.6,0.02992292]
[1738239912416,0.03056834,240.65,240.61,7.17808971]
[1738239916117,0.03056834,240.65,240.61,11.33468971]
[1738239916315,0.03056834,240.65,240.61,7.17808971]
[1738239917206,0.03056834,240.65,240.62,4.1565]
[1738239917811,0.03056834,240.65,240.64,4.1561]
[1738239918120,7.17808971,240.75,240.63,7.17808971]
[1738239918312,7.17808971,240.75,240.68,7.17808971]
[1738239918818,4.155,240.71,240.68,7.17808971]
[1738239919116,4.155,240.71,240.66,11.33378971]
[1738239919313,0.02726136,240.72,240.67,0.03082942]
[1738239919515,4.1551,240.7,240.67,0.03082942]
[1738239919715,7.17808971,240.71,240.67,0.03082942]
[1738239920109,4.1555,240.68,240.67,0.03082942]
[1738239923118,4.1565,240.62,240.58,7.17808971]
[1738239923310,4.1565,240.62,240.56,8.61308971]
[1738239923912,4.1567,240.61,240.56,11.33548971]
[1738239924117,4.1858688,240.61,240.57,0.03174239]
[1738239924520,0.0291688,240.61,240.57,0.03174239]
[1738239924715,4.1569,240.6,240.57,0.03174239]
[1738239925821,4.1571,240.59,240.57,0.03174239]
[1738239926021,7.17808971,240.58,240.57,0.03174239]
[1738239926718,11.33528971,240.58,240.57,0.03174239]
[1738239933727,4.1572,240.58,240.57,0.03174239]
[1738239933930,7.17808971,240.6,240.57,0.03174239]
[1738239934428,4.157,240.59,240.57,0.03174239]
[1738239934825,7.17808971,240.6,240.57,0.03174239]
[1738239935024,11.33498971,240.6,240.57,0.03174239]
[1738239935230,7.17808971,240.6,240.57,0.03174239]
[1738239936231,4.157,240.59,240.57,0.03174239]
[1738239937127,7.17808971,240.6,240.57,0.03174239]
[1738239937332,4.1572,240.58,240.57,0.03174239]
[1738239941336,11.33528971,240.58,240.57,0.03174239]
[1738239946144,7.17808971,240.58,240.57,0.03174239]
[1738239946536,4.1571,240.59,240.57,0.03174239]
[1738239946940,4.1571,240.59,240.57,4.18914239]
[1738239947442,4.1571,240.59,240.57,0.03174239]
[1738239948948,4.1572,240.58,240.57,0.03174239]
[1738239949147,11.33528971,240.58,240.57,0.03174239]
[1738239951950,4.1571,240.59,240.57,0.03174239]
[1738239953949,4.1572,240.58,240.57,0.03174239]
[1738239958951,11.33528971,240.58,240.57,0.03174239]
[1738239968766,14.95987501,240.58,240.57,0.03174239]
[1738239976667,10.80267501,240.58,240.44,17.00426235]
[1738239976871,4.1587,240.5,240.44,17.00426235]
[1738239977264,4.1587,240.5,240.45,4.1593]
[1738239977464,4.1587,240.5,240.44,17.00426235]
[1738239977865,0.03091144,240.49,240.46,4.1591]
[1738239978071,0.03091144,240.49,240.45,0.02785175]
[1738239978466,0.03091144,240.49,240.46,7.17808971]
[1738239978873,0.03091144,240.49,240.48,11.33698971]
[1738239984080,0.03091144,240.49,240.48,4.1589]
[1738239984580,0.03091144,240.49,240.47,4.159]
[1738239984983,0.03091144,240.49,240.45,0.02785175]
[1738239985282,0.03091144,240.49,240.46,4.1591]
[1738239987978,0.03091144,240.49,240.45,0.02785175]
[1738239988183,4.18971144,240.49,240.45,4.18725175]
[1738239989090,0.03091144,240.49,240.46,4.1592]
[1738239990782,4.1589,240.48,240.45,4.18725175]
[1738239995485,4.18971144,240.49,240.46,4.1593]
[1738239997188,0.03091144,240.49,240.46,4.1593]
[1738239997493,4.1589,240.48,240.46,4.1593]
[1738240003991,4.1591,240.47,240.45,0.02785175]
[1738240004885,4.1593,240.46,240.45,0.02785175]
[1738240005184,11.33738971,240.46,240.45,0.02785175]
[1738240020115,7.17808971,240.46,240.45,0.02785175]
[1738240020305,4.159,240.48,240.45,4.18725175]
[1738240021306,7.17808971,240.47,240.45,4.18725175]
[1738240021704,4.1593,240.46,240.45,0.02785175]
[1738240024608,4.1591,240.48,240.45,0.02785175]
[1738240025504,11.33718971,240.48,240.45,0.02785175]
[1738240027808,4.18971144,240.49,240.45,4.18715175]
[1738240028007,0.03091144,240.49,240.45,0.02785175]
[1738240028700,0.03091144,240.49,240.46,7.17808971]
[1738240028904,0.03091144,240.49,240.48,7.17808971]
[1738240029306,0.03091144,240.49,240.47,4.1591]
[1738240029811,0.03091144,240.49,240.46,7.17808971]
[1738240030007,0.03091144,240.49,240.48,11.33698971]
[1738240030208,4.1577,240.55,240.48,7.17808971]
[1738240030403,4.1577,240.55,240.5,7.17808971]
[1738240030601,7.17808971,240.58,240.5,7.17808971]
[1738240030800,7.17808971,240.56,240.48,7.17808971]
[1738240031009,7.17808971,240.54,240.46,7.17808971]
[1738240031513,0.03158603,240.52,240.48,4.18748561]
[1738240033207,0.03158603,240.52,240.48,0.02868561]
[1738240033410,0.03158603,240.52,240.49,4.1587]
[1738240033613,11.33528971,240.58,240.49,7.17808971]
[1738240034312,11.33528971,240.58,240.53,4.158]
[1738240034607,7.17808971,240.58,240.49,7.17808971]
[1738240034808,7.17808971,240.56,240.53,0.03199387]
[1738240035113,11.33598971,240.54,240.53,0.03199387]
[1738240044919,11.33578971,240.56,240.53,0.03199387]
[1738240045111,4.1577,240.56,240.53,0.03199387]
[1738240045520,7.20558947,240.58,240.53,0.03199387]
[1738240046221,4.1578,240.55,240.53,0.03199387]
[1738240047421,7.17808971,240.54,240.53,0.03199387]
[1738240047623,11.33598971,240.54,240.53,0.03199387]
[1738240048621,7.17808971,240.54,240.41,7.17808971]
[1738240048917,7.17808971,240.48,240.4,8.1987]
[1738240049223,7.17808971,240.48,240.4,4.0384]
[1738240049821,0.02626229,240.46,240.42,0.03179623]
[1738240050721,7.204352,240.46,240.42,0.03179623]
[1738240051419,4.1597,240.44,240.42,0.03179623]
[1738240051621,7.204352,240.46,240.42,0.03179623]
[1738240051823,4.1595,240.45,240.42,0.03179623]
[1738240052424,7.204352,240.46,240.42,0.03179623]
[1738240052624,0.02626229,240.46,240.42,0.03179623]
[1738240053128,0.02626229,240.46,240.43,4.1596]
[1738240053319,0.02626229,240.46,240.42,0.03179623]
[1738240053720,0.02626229,240.46,240.45,4.1594]
[1738240054027,0.02626229,240.46,240.45,11.33748971]
[1738240057929,0.02626229,240.46,240.42,0.03179623]
[1738240058122,0.02626229,240.46,240.43,4.1596]
[1738240058623,0.02626229,240.46,240.42,0.03179623]
[1738240059024,4.1594,240.45,240.42,0.03179623]
[1738240059329,7.204352,240.46,240.42,0.03179623]
[1738240059528,4.1596,240.44,240.42,0.03179623]
[1738240060425,4.1595,240.45,240.42,0.03179623]
[1738240061130,4.18556229,240.46,240.42,0.03179623]
[1738240062031,4.18556229,240.46,240.42,4.19169623]
[1738240063835,0.02626229,240.46,240.42,0.03179623]
[1738240064133,4.1598,240.44,240.42,0.03179623]
[1738240065233,4.1598,240.43,240.42,0.03179623]
[1738240067135,4.1596,240.45,240.42,0.03179623]
[1738240071038,4.1597,240.44,240.42,0.03179623]
[1738240073142,0.02626229,240.46,240.43,4.1597]
[1738240074740,0.02626229,240.46,240.42,0.03179623]
[1738240074942,0.02626229,240.46,240.44,4.1596]
[1738240076146,4.18556229,240.46,240.43,4.1597]
[1738240078544,4.18556229,240.46,240.42,0.03179623]
[1738240078545,7.17808971,240.44,240.42,0.03179623]
[1738240078744,4.1598,240.43,240.42,0.03179623]
[1738240080649,7.77549904,240.43,240.42,0.03179623]
[1738240088253,4.1598,240.43,240.42,0.03179623]
[1738240092354,7.77546362,240.43,240.42,0.03179623]
[1738240093057,3.61566362,240.43,240.29,7.17808971]
[1738240093350,7.17808971,240.34,240.25,7.17808971]
[1738240093557,7.17808971,240.34,240.27,4.1625]
[1738240093747,4.1617,240.32,240.27,4.1625]
[1738240094157,7.17808971,240.34,240.27,4.1625]
[1738240094356,4.1619,240.31,240.27,4.19177009]
[1738240094557,0.02984617,240.32,240.27,4.19177009]
[1738240095759,4.19154617,240.32,240.27,4.19177009]
[1738240096060,4.19154617,240.32,240.28,4.1624]
[1738240098160,0.02984617,240.32,240.29,4.1622]
[1738240098962,11.36963588,240.32,240.27,4.19167009]
[1738240099255,7.17808971,240.3,240.27,0.02927009]
[1738240100264,4.1622,240.29,240.27,0.02927009]
[1738240101266,11.34048971,240.28,240.27,0.02927009]
[1738240102666,11.34048971,240.28,240.21,4.1634]
[1738240102667,7.17808971,240.28,240.21,4.1634]
[1738240102868,11.34098971,240.25,240.21,4.1634]
[1738240103167,7.17808971,240.25,240.19,4.1639]
[1738240103364,4.1634,240.22,240.15,11.20818971]
[1738240104064,0.0283926,240.21,240.17,4.1643]
[1738240104260,7.20648231,240.21,240.16,0.02953934]
[1738240104561,7.17808971,240.19,240.16,0.02953934]
[1738240104864,7.17808971,240.17,240.16,0.02953934]
[1738240105063,11.34238971,240.17,240.16,0.02953934]
[1738240105663,7.17808971,240.17,240.16,0.02953934]
[1738240106068,7.17808971,240.19,240.16,0.02953934]
[1738240106269,7.17808971,240.17,240.16,0.02953934]
[1738240106865,11.34238971,240.17,240.16,0.02953934]
[1738240113671,7.17808971,240.17,240.01,7.17808971]
[1738240113968,7.17808971,240.07,239.99,7.17808971]
[1738240114172,7.17808971,240.07,240.0,0.7595316]
[1738240114572,7.17808971,240.07,239.99,7.17808971]
[1738240114773,0.02928251,240.06,240.01,0.02635756]
[1738240115675,0.02928251,240.06,240.05,11.34448971]
[1738240115879,7.17808971,240.11,240.05,7.17808971]
[1738240116274,7.17808971,240.13,240.07,7.17808971]
[1738240116475,7.17808971,240.13,240.05,7.17808971]
[1738240116972,7.20602492,240.11,240.07,0.02657975]
[1738240117169,7.17808971,240.11,240.03,7.17808971]
[1738240117384,7.2071804,240.11,240.07,0.02964934]
[1738240117671,7.17808971,240.09,240.07,0.02964934]
[1738240118378,7.17808971,240.09,240.07,4.19564934]
[1738240118573,7.2071804,240.11,240.07,0.02964934]
[1738240120083,7.2071804,240.11,240.08,4.1658]
[1738240120577,7.2071804,240.11,240.07,0.02964934]
[1738240121582,7.2071804,240.11,240.08,4.1657]
[1738240122582,7.2071804,240.11,240.07,0.02964934]
[1738240122784,7.17808971,240.09,240.07,4.19564934]
[1738240124686,7.17808971,240.09,240.07,0.02964934]
[1738240124883,7.17808971,240.09,240.08,4.1658]
[1738240125184,0.02909069,240.11,240.07,0.02964934]
[1738240125880,7.2071804,240.11,240.09,4.1655]
[1738240126088,7.2071804,240.11,240.07,0.02964934]
[1738240126986,7.17808971,240.09,240.07,0.02964934]
[1738240128181,4.1655,240.1,240.07,0.02964934]
[1738240128385,7.2071804,240.11,240.07,0.02964934]
[1738240128684,11.3725804,240.11,240.07,4.19564934]
[1738240129288,7.2071804,240.11,240.07,0.02964934]
[1738240129488,11.3725804,240.11,240.07,4.19554934]
[1738240129788,7.2071804,240.11,240.07,0.02964934]
[1738240129990,7.17808971,240.09,240.07,0.02964934]
[1738240132091,7.17808971,240.09,240.07,4.19564934]
[1738240132792,7.2071804,240.11,240.08,4.1658]
[1738240134291,7.2071804,240.11,240.09,4.1656]
[1738240137189,11.3725804,240.11,240.08,4.1658]
[1738240138894,4.1656,240.1,240.07,0.02964934]
[1738240141489,7.2071804,240.11,240.07,0.02964934]
[1738240142094,7.2071804,240.11,240.08,4.1657]
[1738240143699,11.3725804,240.11,240.08,4.1657]
[1738240144197,4.1655,240.1,240.08,4.1657]
[1738240144798,7.17808971,240.09,240.07,0.02964934]
[1738240144997,4.1658,240.08,240.07,0.02964934]
[1738240147196,7.17808971,240.09,240.07,0.02964934]
[1738240147502,4.1658,240.08,240.07,0.02964934]
[1738240147898,7.78516063,240.08,239.97,7.17808971]
[1738240148099,3.61916063,240.08,240.01,7.17808971]
[1738240148396,7.17808971,240.11,240.03,7.17808971]
[1738240149005,0.02858721,240.09,240.06,4.1662]
[1738240149300,0.02858721,240.09,240.05,7.20556435]
[1738240150094,0.02858721,240.09,240.08,4.1658]
[1738240151899,0.02858721,240.09,240.05,7.20556435]
[1738240152199,0.02858721,240.09,240.07,4.166]
[1738240152700,0.02858721,240.09,240.05,4.19367464]
[1738240152900,7.20667692,240.09,240.05,0.02747464]
[1738240153413,7.20667692,240.09,240.06,4.1662]
[1738240154306,7.20667692,240.09,240.05,4.19387464]
[1738240155205,7.20667692,240.09,240.05,0.02747464]
[1738240155503,7.20667692,240.09,240.06,4.1661]
[1738240156205,7.17808971,240.07,240.05,0.02747464]
[1738240157911,7.20667692,240.09,240.05,0.02747464]
[1738240158305,3.6277147,240.08,240.05,0.02747464]
[1738240158604,3.6277147,240.08,240.06,4.1662]
[1738240158804,7.20667692,240.09,240.05,0.02747464]
[1738240159308,7.20667692,240.09,240.06,4.1662]
[1738240159809,7.20667692,240.09,240.07,4.166]
[1738240160412,7.20667692,240.09,240.08,4.1658]
[1738240160615,0.02858721,240.09,240.08,4.1658]
[1738240168213,0.02858721,240.09,240.06,4.166]
[1738240168817,0.02858721,240.09,240.05,0.02747464]
[1738240169020,11.37237692,240.09,240.05,0.02747464]
[1738240170017,7.20667692,240.09,240.05,0.02747464]
[1738240170910,4.166,240.07,240.05,0.02747464]
[1738240172719,7.20667692,240.09,240.05,0.02747464]
[1738240172919,4.1659,240.08,240.05,0.02747464]
[1738240173420,0.02858721,240.09,240.06,4.1661]
[1738240173619,0.02858721,240.09,240.05,0.02747464]
[1738240173921,0.02858721,240.09,240.07,4.1658]
[1738240174222,0.02858721,240.09,240.05,0.02747464]
[1738240174518,0.02858721,240.09,240.07,4.1658]
[1738240176123,0.02858721,240.09,240.08,4.1658]
[1738240178925,4.1647,240.15,240.1,4.1654]
[1738240179122,7.17808971,240.15,240.1,4.1654]
[1738240179321,7.17808971,240.13,240.1,4.1654]
[1738240179522,7.17808971,240.13,240.05,7.17808971]
[1738240180024,0.02811395,240.11,240.07,0.02870854]
[1738240180725,0.02811395,240.11,240.09,4.1655]
[1738240181528,0.02811395,240.11,240.1,4.1655]
[1738240183132,0.02811395,240.11,240.07,0.02870854]
[1738240183333,0.02811395,240.11,240.08,4.1657]
[1738240183531,7.20620366,240.11,240.08,4.1657]
[1738240183925,7.20620366,240.11,240.07,0.02870854]
[1738240184125,7.17808971,240.09,240.07,0.02870854]
[1738240184325,4.19361395,240.11,240.07,0.02870854]
[1738240184526,0.02811395,240.11,240.07,0.02870854]
[1738240185329,0.02811395,240.11,240.08,4.1658]
[1738240185534,7.20620366,240.11,240.07,0.02870854]
[1738240185829,4.1655,240.1,240.07,0.02870854]
[1738240187736,11.37150366,240.11,240.07,4.19470854]
[1738240187934,7.20620366,240.11,240.07,4.19470854]
[1738240188440,0.02811395,240.11,240.1,4.1655]
[1738240188935,0.02811395,240.11,240.07,0.02870854]
[1738240189136,0.02811395,240.11,240.07,7.20679825]
[1738240190232,0.02811395,240.11,240.1,4.1655]
[1738240195433,7.17808971,240.21,240.15,4.1645]
[1738240195638,4.1641,240.19,240.15,4.1645]
[1738240196642,4.19175968,240.19,240.16,4.1644]
[1738240197036,0.02765968,240.19,240.15,0.02917777]
[1738240197340,0.02765968,240.19,240.18,4.1641]
[1738240197539,0.02765968,240.19,240.18,11.34218971]
[1738240198139,0.02765968,240.19,240.18,4.1641]
[1738240199742,0.02765968,240.19,240.16,11.34248971]
[1738240201639,0.02765968,240.19,240.18,11.34218971]
[1738240202046,7.17808971,240.29,240.18,7.17808971]
[1738240202240,7.17808971,240.27,240.2,7.17808971]
[1738240202436,7.17808971,240.23,240.16,1.3311]
[1738240203341,0.0299719,240.22,240.17,0.02927125]
[1738240203540,4.1638,240.2,240.17,0.02927125]
[1738240204736,0.0299719,240.22,240.17,0.02927125]
[1738240205045,4.1641,240.18,240.17,0.02927125]
[1738240206349,4.1934719,240.22,240.17,4.19347125]
[1738240207142,0.0299719,240.22,240.18,7.17808971]
[1738240207341,0.0299719,240.22,240.18,11.34208971]
[1738240207941,0.0299719,240.22,240.19,4.1638]
[1738240208539,0.0299719,240.22,240.2,7.17808971]
[1738240209146,0.0299719,240.22,240.21,4.1636]
[1738240209755,0.0299719,240.22,240.2,7.17808971]
[1738240210348,0.0299719,240.22,240.18,7.17808971]
[1738240212051,0.0299719,240.22,240.19,4.1639]
[1738240212247,0.0299719,240.22,240.18,7.17808971]
[1738240212452,0.0299719,240.22,240.17,0.02927125]
[1738240212749,4.1638,240.2,240.17,0.02927125]
[1738240212945,7.17808971,240.21,240.17,0.02927125]
[1738240214152,4.1641,240.18,240.17,0.02927125]
[1738240216455,4.164,240.19,240.17,0.02927125]
[1738240217957,4.1641,240.18,240.17,0.02927125]
[1738240218157,7.20806161,240.22,240.17,0.02927125]
[1738240218556,4.1639,240.2,240.17,0.02927125]
[1738240219359,7.20806161,240.22,240.17,0.02927125]
[1738240220256,4.164,240.19,240.17,0.02927125]
[1738240220961,7.20806161,240.22,240.17,0.02927125]
[1738240221259,11.37156161,240.22,240.17,4.19347125]
[1738240221459,7.20806161,240.22,240.17,4.19347125]
[1738240221859,7.20806161,240.22,240.18,4.1641]
[1738240222058,0.0299719,240.22,240.17,0.02927125]
[1738240222361,0.0299719,240.22,240.18,7.17808971]
[1738240222557,0.0299719,240.22,240.21,4.1636]
[1738240223764,0.0299719,240.22,240.2,4.1637]
[1738240224860,4.1934719,240.22,240.17,0.02927125]
[1738240225265,0.0299719,240.22,240.17,0.02927125]
[1738240225460,4.1637,240.21,240.17,4.19357125]
[1738240225664,7.20806161,240.22,240.17,0.02927125]
[1738240226264,4.164,240.19,240.17,0.02927125]
[1738240231964,7.20806161,240.22,240.17,0.02927125]
[1738240232170,4.1641,240.18,240.17,0.02927125]
[1738240239569,11.34218971,240.18,240.17,0.02927125]
[1738240240273,7.17808971,240.18,240.06,7.17808971]
[1738240240466,7.17808971,240.14,240.06,7.17808971]
[1738240240871,4.1648,240.15,240.08,7.17808971]
[1738240241576,0.02768238,240.14,240.09,0.02965616]
[1738240241774,0.02768238,240.14,240.1,7.17808971]
[1738240242075,0.02768238,240.14,240.13,4.165]
[1738240243977,0.02768238,240.14,240.1,7.17808971]
[1738240243978,0.02768238,240.14,240.11,4.1653]
[1738240244576,7.17808971,240.12,240.09,0.02965616]
[1738240245080,7.17808971,240.1,240.09,0.02965616]
[1738240246079,11.34358971,240.1,240.09,0.02965616]
[1738240251382,4.1664,240.06,240.01,4.1669]
[1738240251581,7.17808971,240.05,239.96,9.85018971]
[1738240252081,4.1667,240.03,239.99,4.1673]
[1738240252378,4.1942416,240.03,239.99,4.19388022]
[1738240253381,0.0275416,240.03,240.01,4.1669]
[1738240254584,0.0275416,240.03,240.02,4.1669]
[1738240265399,0.0275416,240.03,240.02,11.34498971]
[1738240265601,7.17808971,240.15,240.02,7.17808971]
[1738240265901,7.17808971,240.15,240.07,7.17808971]
[1738240266097,4.1651,240.13,240.07,7.17808971]
[1738240266803,4.19626634,240.12,240.09,4.1655]
[1738240267006,0.03116634,240.12,240.09,7.17808971]
[1738240267599,0.03116634,240.12,240.11,4.1653]
[1738240267797,0.03116634,240.12,240.08,0.03125971]
[1738240268302,7.17808971,240.21,240.11,7.17808971]
[1738240268494,7.17808971,240.19,240.11,7.17808971]
[1738240268693,4.1641,240.18,240.14,4.1648]
[1738240269306,4.1641,240.18,240.11,7.17808971]
[1738240269603,4.19353064,240.18,240.14,0.03080516]
[1738240270302,0.02943064,240.18,240.14,0.03080516]
[1738240270499,4.1644,240.17,240.14,0.03080516]
[1738240270699,11.34248971,240.17,240.14,0.03080516]
[1738240270900,7.17808971,240.17,240.14,0.03080516]
[1738240271105,0.02943064,240.18,240.14,0.03080516]
[1738240273808,7.17808971,240.17,240.14,0.03080516]
[1738240274106,7.17808971,240.17,240.15,4.1646]
[1738240274410,7.17808971,240.17,240.14,0.03080516]
[1738240274704,7.17808971,240.15,240.14,0.03080516]
[1738240275306,11.34268971,240.15,240.14,0.03080516]
[1738240275699,7.17808971,240.1,240.04,1.3247]
[1738240276208,7.17808971,240.1,240.06,4.166]
[1738240276407,7.17808971,240.1,240.04,1.3247]
[1738240276798,0.02855028,240.09,240.05,0.02757281]
[1738240277003,0.02855028,240.09,240.08,4.1658]
[1738240283209,0.02855028,240.09,240.05,0.02757281]
[1738240285111,0.02855028,240.09,240.08,4.1658]
[1738240286505,0.02855028,240.09,240.05,0.02757281]
[1738240286710,4.1662,240.06,240.05,0.02757281]
[1738240288009,7.17808971,240.08,240.05,0.02757281]
[1738240289212,4.166,240.07,240.05,0.02757281]
[1738240289406,7.17808971,240.08,240.05,0.02757281]
[1738240291115,7.17808971,240.06,240.05,0.02757281]
[1738240291616,11.34428971,240.06,240.05,0.02757281]
[1738240293817,4.1659,240.08,240.05,4.19397281]
[1738240295918,4.166,240.07,240.05,0.02757281]
[1738240296311,11.34408971,240.07,240.05,0.02757281]
[1738240296819,7.17808971,240.07,240.05,0.02757281]
[1738240297011,4.1662,240.06,240.05,0.02757281]
[1738240301825,11.34408971,240.07,240.05,0.02757281]
[1738240302021,7.17808971,240.07,240.05,0.02757281]
[1738240303326,4.1662,240.06,240.05,0.02757281]
[1738240305021,7.17808971,240.07,240.05,0.02757281]
[1738240305224,7.20663999,240.09,240.05,0.02757281]
[1738240307130,11.37233999,240.09,240.06,4.166]
[1738240313834,0.02855028,240.09,240.08,4.1658]
[1738240321243,7.17808971,240.15,240.14,4.1648]
[1738240322142,11.34258971,240.17,240.14,4.1648]
[1738240322342,0.03056637,240.17,240.12,0.02836903]
[1738240322538,0.03056637,240.17,240.16,4.1645]
[1738240324139,7.20865608,240.17,240.14,4.1648]
[1738240324339,7.17808971,240.15,240.12,0.02836903]
[1738240325242,7.20865608,240.17,240.12,0.02836903]
[1738240326152,7.20865608,240.17,240.14,4.1646]
[1738240326347,7.20865608,240.17,240.12,0.02836903]
[1738240326946,4.1645,240.16,240.13,4.165]
[1738240327947,4.165,240.13,240.12,0.02836903]
[1738240328246,11.34308971,240.13,240.12,0.02836903]
[1738240332852,7.17808971,240.13,240.0,7.17808971]
[1738240333047,2.7752,240.16,240.0,7.17808971]
[1738240333048,7.17808971,240.07,240.0,7.17808971]
[1738240333252,7.17808971,240.07,239.98,8.60238971]
[1738240333655,7.17808971,240.07,240.03,4.1667]
[1738240333952,7.20580734,240.07,240.03,0.03105565]
[1738240334557,4.1665,240.04,240.03,0.03105565]
[1738240335647,7.17808971,240.05,240.03,0.03105565]
[1738240336451,11.34448971,240.05,240.03,0.03105565]
[1738240336855,4.1664,240.05,240.03,0.03105565]
[1738240337448,4.1665,240.04,240.03,0.03105565]
[1738240342157,7.17808971,240.05,239.94,7.17808971]
[1738240342358,4.1671,240.01,239.97,4.1676]
[1738240343359,4.19864098,240.01,239.98,4.1676]
[1738240344350,4.1674,239.99,239.97,0.03166654]
[1738240345858,0.03154098,240.01,239.97,0.03166654]
[1738240345859,11.34568971,239.98,239.97,0.03166654]
[1738240346058,11.34568971,239.98,239.86,7.17808971]
[1738240346059,7.17808971,239.98,239.86,7.17808971]
[1738240346264,7.17808971,239.92,239.84,142.42344379]
[1738240346456,4.1686,239.92,239.85,7.17808971]
[1738240347063,7.17808971,239.94,239.85,7.17808971]
[1738240347064,11.34648971,239.94,239.89,4.169]
[1738240347365,0.02818588,239.91,239.86,0.02804631]
[1738240348162,0.02818588,239.91,239.88,4.1693]
[1738240348362,0.02818588,239.91,239.86,0.02804631]
[1738240348754,0.02818588,239.91,239.9,4.169]
[1738240362777,0.02818588,239.91,239.87,4.1694]
[1738240363075,0.02818588,239.91,239.86,0.02804631]
[1738240363277,0.02818588,239.91,239.88,4.1693]
[1738240363477,0.02818588,239.91,239.87,7.17808971]
[1738240364771,0.02818588,239.91,239.86,0.02804631]
[1738240365572,11.34718971,239.89,239.86,0.02804631]
[1738240366177,7.17808971,239.87,239.86,0.02804631]
[1738240366683,7.17808971,239.87,239.86,4.19774631]
[1738240366977,7.17808971,239.89,239.86,4.19774631]
[1738240367178,0.02818588,239.91,239.9,4.169]
[1738240367773,0.02818588,239.91,239.87,7.17808971]
[1738240367977,0.02818588,239.91,239.89,4.1691]
[1738240372876,0.02818588,239.91,239.9,4.169]
[1738240386893,7.17808971,240.01,239.89,7.17808971]
[1738240387191,1.3409,240.06,239.87,4.0845]
[1738240387192,7.17808971,239.99,239.91,7.17808971]
[1738240387390,4.1676,239.98,239.91,7.17808971]
[1738240387584,7.17808971,239.99,239.91,7.17808971]
[1738240387788,11.34598971,239.96,239.92,4.1685]
[1738240387991,11.34598971,239.96,239.88,7.17808971]
[1738240388292,4.1681,239.95,239.92,0.02994269]
[1738240388991,11.37662001,239.96,239.92,4.19854269]
[1738240390098,4.1985303,239.96,239.92,4.19854269]
[1738240390799,11.37662001,239.96,239.92,4.19854269]
[1738240391699,7.17808971,239.94,239.92,0.02994269]
[1738240391902,4.1684,239.93,239.92,0.02994269]
[1738240398401,4.1694,239.88,239.85,4.1698]
[1738240398704,7.17808971,239.88,239.85,4.1698]
[1738240399906,7.17808971,239.88,239.84,0.02821255]
[1738240400108,4.1695,239.87,239.84,4.19821255]
[1738240400403,7.17808971,239.88,239.84,4.19821255]
[1738240400609,11.34738971,239.88,239.84,4.19821255]
[1738240400810,7.17808971,239.88,239.84,4.19821255]
[1738240401309,4.1696,239.87,239.84,4.19821255]
[1738240401813,11.34738971,239.88,239.84,4.19821255]
[1738240402606,11.34738971,239.88,239.84,0.02821255]
[1738240402908,0.02675442,239.89,239.84,0.02821255]
[1738240403103,0.02675442,239.89,239.86,7.17808971]
[1738240403308,0.02675442,239.89,239.88,4.1693]
[1738240404212,0.02675442,239.89,239.88,11.34738971]
[1738240407209,0.02675442,239.89,239.88,4.1693]
[1738240408811,0.02675442,239.89,239.88,11.34738971]
[1738240411511,0.02675442,239.89,239.88,4.1693]
[1738240412515,0.02675442,239.89,239.87,4.1694]
[1738240414921,0.02675442,239.89,239.86,7.17808971]
[1738240415119,0.02675442,239.89,239.87,4.1695]
[1738240415418,0.02675442,239.89,239.86,7.17808971]
[1738240415721,0.02675442,239.89,239.88,4.1693]
[1738240415917,0.02675442,239.89,239.88,11.34738971]
[1738240421824,7.17808971,240.0,239.96,4.1678]
[1738240422726,11.34528971,240.0,239.96,4.1678]
[1738240422924,7.17808971,240.0,239.93,7.17808971]
[1738240423122,7.17808971,240.0,239.81,8.62332415]
[1738240423123,0.02648842,240.0,239.98,4.1675]
[1738240423529,7.17808971,240.02,239.98,4.1675]
[1738240423730,0.03019964,240.01,239.98,4.1675]
[1738240423932,7.17808971,240.0,239.97,0.02834135]
[1738240425123,11.34528971,240.0,239.97,0.02834135]
[1738240425524,7.17808971,239.98,239.97,0.02834135]
[1738240425733,4.1684,239.94,239.83,15.3347851]
[1738240425931,7.17808971,239.91,239.83,7.17808971]
[1738240426531,7.17808971,239.89,239.82,142.42344379]
[1738240426827,0.02960284,239.88,239.83,0.03110889]
[1738240427531,0.02960284,239.88,239.83,7.2091986]
[1738240428030,0.02960284,239.88,239.87,4.1695]
[1738240428532,0.02960284,239.88,239.87,11.34758971]
[1738240429431,0.02960284,239.88,239.87,4.1695]
[1738240429734,0.02960284,239.88,239.87,11.34758971]
[1738240430627,7.17808971,239.97,239.87,7.17808971]
[1738240430837,11.34548971,239.99,239.94,4.1681]
[1738240431534,4.1667,240.03,239.94,11.34618971]
[1738240431838,0.02960431,240.01,239.97,7.17808971]
[1738240432333,0.02739581,240.01,239.97,7.20741329]